fUST/lending_fUST_20250525
["ID","MTS","AMOUNT","RATE_DAILY","PERIOD"]
[362207567,1748102448483,243.02,0.00013964,2]
[362207568,1748102448919,486.05,0.00015234,2]
[362207570,1748102497195,162.356876,0.00013699,2]
[362207571,1748102521654,229.77,0.00013846,2]
[362207572,1748102522314,459.54,0.00015105,2]
[362207573,1748102594980,217.24,0.00013828,2]
[362207574,1748102595415,434.47,0.00015085,2]
[362207575,1748102666454,205.39,0.00013799,2]
[362207576,1748102666879,410.77,0.00015054,2]
[362207577,1748102740386,194.18,0.00013808,2]
[362207578,1748102740801,388.37,0.00015064,2]
[362207580,1748102792011,235.782852,0.00015934,2]
[362207581,1748102801020,1500.0,0.0002455,120]
[362207582,1748102813100,183.59,0.00013818,2]
[362207583,1748102813559,367.18,0.00015074,2]
[362207584,1748102886106,173.58,0.00013818,2]
[362207585,1748102886532,347.16,0.00015074,2]
[362207586,1748102958764,164.11,0.00013818,2]
[362207587,1748102959490,328.22,0.00015074,2]
[362207588,1748102965118,250.0,0.00015952,2]
[362207589,1748103030608,155.16,0.00013648,2]
[362207590,1748103031029,310.32,0.00014889,2]
[362207622,1748103032585,-465.48,0.0001613,2]
[362207623,1748103032597,-160.3320729,0.00016156,2]
[362207624,1748103032609,-159.0,0.00016438,3]
[362207625,1748103032620,-160.0,0.00016498,2]
[362207626,1748103032632,-2003.0,0.000165,2]
[362207627,1748103032644,-300.0,0.00016738,2]
[362207628,1748103032656,-300.0,0.00016738,2]
[362207629,1748103032668,-300.0,0.00016738,2]
[362207630,1748103032680,-300.0,0.00016738,2]
[362207631,1748103032691,-300.0,0.00016738,2]
[362207632,1748103032703,-1200.0,0.00016738,2]
[362207633,1748103032714,-4227.7855609,0.00016739,2]
[362207634,1748103032726,-390.65088987,0.00017191,2]
[362207635,1748103032737,-620.63,0.0001737,2]
[362207636,1748103032748,-50000.0,0.00017499,2]
[362207637,1748103032759,-275.64695542,0.000175,2]
[362207638,1748103032771,-275.64695519,0.000175,2]
[362207639,1748103032782,-275.64695519,0.000175,2]
[362207640,1748103032794,-152.56528517,0.00017589,2]
[362207641,1748103032805,-275.64695519,0.00017728,2]
[362207642,1748103032817,-23974.3414307,0.00017753,2]
[362207643,1748103032828,-1000.49024022,0.0001783,2]
[362207644,1748103032840,-5000.0,0.00017831,2]
[362207645,1748103032852,-152.56528517,0.00017993,2]
[362207646,1748103032863,-21279.98168669,0.00018,2]
[362207647,1748103032875,-275.64695519,0.00018003,2]
[362207648,1748103032887,-24900.0,0.00018184,2]
[362207649,1748103032898,-2003.0,0.000182,2]
[362207650,1748103032909,-275.64695519,0.00018279,2]
[362207651,1748103032920,-420.0,0.00018287,2]
[362207652,1748103032933,-420.0,0.00018287,2]
[362207653,1748103032944,-500.0,0.00018287,2]
[362207654,1748103032957,-1680.0,0.00018378,2]
[362207655,1748103032968,-152.56528517,0.00018396,2]
[362207656,1748103032979,-275.64695519,0.00018555,2]
[362207657,1748103032990,-506.25609039,0.00018561,2]
[362207658,1748103033001,-775.79,0.00018611,2]
[362207659,1748103033012,-152.56528517,0.000188,2]
[362207660,1748103033024,-275.64695519,0.00018831,2]
[362207661,1748103033036,-2000.0,0.00019,2]
[362207662,1748103033048,-1318.65291377,0.00019078,2]
[362207663,1748103033059,-275.64695519,0.00019107,2]
[362207664,1748103033071,-1318.65291373,0.00019133,2]
[362207665,1748103033080,-500.0,0.00019177,2]
[362207666,1748103033090,-500.0,0.00019177,2]
[362207667,1748103033100,-369.91000599,0.00019177,2]
[362207668,1748103033109,-500.0,0.00019177,2]
[362207669,1748103033273,-500.0,0.00019177,2]
[362207670,1748103033291,-500.0,0.00019177,2]
[362207671,1748103033300,-500.0,0.00019177,2]
[362207672,1748103033310,-422.1317568,0.00019177,2]
[362207673,1748103033320,-500.0,0.00019178,2]
[362207674,1748103033330,-500.0,0.00019178,2]
[362207675,1748103033339,-500.0,0.00019178,2]
[362207676,1748103033349,-500.0,0.00019178,2]
[362207677,1748103033358,-500.0,0.00019178,2]
[362207678,1748103033368,-500.0,0.00019178,2]
[362207679,1748103033377,-500.0,0.00019178,2]
[362207680,1748103033387,-336.26624562,0.00019178,2]
[362207681,1748103033396,-420.0,0.00019178,2]
[362207682,1748103033406,-430.0,0.00019178,2]
[362207683,1748103033415,-430.0,0.00019178,2]
[362207684,1748103033425,-430.0,0.00019178,2]
[362207685,1748103033435,-430.0,0.00019178,2]
[362207686,1748103033444,-430.0,0.00019178,2]
[362207687,1748103033453,-271.61396784,0.00019178,2]
[362207688,1748103033462,-400.0,0.00019178,2]
[362207689,1748103033472,-430.0,0.00019178,2]
[362207690,1748103033481,-430.0,0.00019178,2]
[362207691,1748103033490,-401.01655798,0.00019178,2]
[362207692,1748103033500,-400.0,0.00019178,2]
[362207693,1748103033509,-413.36321639,0.00019178,2]
[362207694,1748103033518,-400.0,0.00019178,2]
[362207695,1748103033528,-400.0,0.00019178,2]
[362207696,1748103033537,-401.1347524,0.00019178,2]
[362207697,1748103033546,-430.0,0.00019178,2]
[362207698,1748103033556,-430.0,0.00019178,2]
[362207699,1748103033565,-407.81691153,0.00019178,2]
[362207700,1748103033574,-400.0,0.00019178,2]
[362207701,1748103033583,-430.0,0.00019178,2]
[362207702,1748103033592,-430.0,0.00019178,2]
[362207703,1748103033601,-400.0,0.00019178,2]
[362207704,1748103033610,-430.0,0.00019178,2]
[362207705,1748103033619,-474.53,0.00019178,2]
[362207706,1748103033628,-400.00118277,0.00019178,2]
[362207707,1748103033637,-400.83855506,0.00019178,2]
[362207708,1748103033647,-400.0,0.00019178,2]
[362207709,1748103033656,-400.0,0.00019178,2]
[362207710,1748103033666,-404.8853484,0.00019178,2]
[362207711,1748103033675,-404.49630838,0.00019178,2]
[362207712,1748103033684,-430.0,0.00019178,2]
[362207713,1748103033694,-348.49841985,0.00019178,2]
[362207714,1748103033703,-430.0,0.00019178,2]
[362207715,1748103033714,-578.79,0.00019178,2]
[362207716,1748103033723,-309.68339155,0.00019178,2]
[362207717,1748103033732,-430.0,0.00019178,2]
[362207718,1748103033742,-400.0,0.00019178,2]
[362207719,1748103033751,-430.0,0.00019178,2]
[362207720,1748103033760,-400.0,0.00019178,2]
[362207721,1748103033770,-400.0,0.00019178,2]
[362207722,1748103033779,-397.82633996,0.00019178,2]
[362207723,1748103033788,-400.0,0.00019178,2]
[362207724,1748103033798,-405.26315831,0.00019178,2]
[362207725,1748103033807,-430.0,0.00019178,2]
[362207726,1748103033817,-400.0,0.00019178,2]
[362207727,1748103033826,-430.0,0.00019178,2]
[362207728,1748103033835,-400.0,0.00019178,2]
[362207729,1748103033844,-430.0,0.00019178,2]
[362207730,1748103033854,-151.0,0.00019178,2]
[362207731,1748103033863,-513.43268924,0.00019178,2]
[362207732,1748103033873,-420.0,0.00019178,2]
[362207733,1748103033882,-470.0,0.00019178,2]
[362207734,1748103033891,-414.64016201,0.00019178,2]
[362207735,1748103033902,-430.0,0.00019178,2]
[362207736,1748103033911,-400.63354523,0.00019178,2]
[362207737,1748103033920,-400.0,0.00019178,2]
[362207738,1748103033930,-430.0,0.00019178,2]
[362207739,1748103033939,-241.21054526,0.00019178,2]
[362207740,1748103033948,-430.0,0.00019178,2]
[362207741,1748103033958,-430.0,0.00019178,2]
[362207742,1748103033967,-400.0,0.00019178,2]
[362207743,1748103033977,-397.28245832,0.00019178,2]
[362207744,1748103033986,-405.91937752,0.00019178,2]
[362207745,1748103033995,-430.0,0.00019178,2]
[362207746,1748103034005,-400.0,0.00019178,2]
[362207747,1748103034014,-538.14402224,0.00019178,2]
[362207748,1748103034024,-390.0,0.00019178,2]
[362207749,1748103034034,-430.0,0.00019178,2]
[362207750,1748103034043,-430.0,0.00019178,2]
[362207751,1748103034052,-430.0,0.00019178,2]
[362207752,1748103034061,-450.0,0.00019178,2]
[362207753,1748103034071,-430.0,0.00019178,2]
[362207754,1748103034080,-450.0,0.00019178,2]
[362207755,1748103034089,-507.47,0.00019178,2]
[362207756,1748103034100,-450.0,0.00019178,2]
[362207757,1748103034110,-430.0,0.00019178,2]
[362207758,1748103034120,-430.0,0.00019178,2]
[362207759,1748103034130,-430.0,0.00019178,2]
[362207760,1748103034142,-430.0,0.00019178,2]
[362207761,1748103034151,-430.0,0.00019178,2]
[362207762,1748103034161,-430.0,0.00019178,2]
[362207763,1748103034171,-430.0,0.00019178,2]
[362207764,1748103034182,-430.0,0.00019178,2]
[362207765,1748103034192,-430.0,0.00019178,2]
[362207766,1748103034202,-430.0,0.00019178,2]
[362207767,1748103034212,-430.0,0.00019178,2]
[362207768,1748103034222,-327.08,0.00019178,2]
[362207769,1748103034232,-430.0,0.00019178,2]
[362207770,1748103034242,-430.0,0.00019178,2]
[362207771,1748103034252,-430.0,0.00019178,2]
[362207772,1748103034261,-225.42,0.00019178,2]
[362207773,1748103034271,-430.0,0.00019178,2]
[362207774,1748103034281,-441.02540797,0.00019178,2]
[362207775,1748103034291,-430.0,0.00019178,2]
[362207776,1748103034300,-430.0,0.00019178,2]
[362207777,1748103034309,-430.0,0.00019178,2]
[362207778,1748103034319,-430.0,0.00019178,2]
[362207779,1748103034328,-430.0,0.00019178,2]
[362207780,1748103034337,-430.0,0.00019178,2]
[362207781,1748103034346,-430.0,0.00019178,2]
[362207782,1748103034355,-1052.17,0.00019178,2]
[362207783,1748103034364,-400.0,0.00019178,2]
[362207784,1748103034373,-400.0,0.00019178,2]
[362207785,1748103034382,-430.0,0.00019178,2]
[362207786,1748103034392,-430.0,0.00019178,2]
[362207787,1748103034403,-403.95886691,0.00019178,2]
[362207788,1748103034412,-400.0,0.00019178,2]
[362207789,1748103034422,-438.17,0.00019178,2]
[362207790,1748103034432,-400.0,0.00019178,2]
[362207791,1748103034442,-430.0,0.00019178,2]
[362207792,1748103034451,-400.0,0.00019178,2]
[362207793,1748103034460,-300.0,0.00019178,2]
[362207794,1748103034469,-430.14,0.00019178,2]
[362207795,1748103034478,-387.64834771,0.00019178,2]
[362207796,1748103034488,-430.0,0.00019178,2]
[362207797,1748103034497,-400.0,0.00019178,2]
[362207798,1748103034508,-430.0,0.00019178,2]
[362207799,1748103034518,-400.0,0.00019178,2]
[362207800,1748103034528,-536.90917548,0.00019178,2]
[362207801,1748103034538,-400.0,0.00019178,2]
[362207802,1748103034548,-400.0,0.00019178,2]
[362207803,1748103034558,-401.14504339,0.00019178,2]
[362207804,1748103034567,-400.0,0.00019178,2]
[362207805,1748103034577,-400.0,0.00019178,2]
[362207806,1748103034586,-400.0,0.00019178,2]
[362207807,1748103034595,-401.08225389,0.00019178,2]
[362207808,1748103034605,-400.0,0.00019178,2]
[362207809,1748103034614,-400.0,0.00019178,2]
[362207810,1748103034623,-235.18904661,0.00019178,2]
[362207811,1748103034632,-400.0,0.00019178,2]
[362207812,1748103034642,-400.0,0.00019178,2]
[362207813,1748103034652,-431.94,0.00019178,2]
[362207814,1748103034662,-400.0,0.00019178,2]
[362207815,1748103034672,-403.48951065,0.00019178,2]
[362207816,1748103034682,-400.0,0.00019178,2]
[362207817,1748103034691,-430.0,0.00019178,2]
[362207818,1748103034701,-469.1,0.00019178,2]
[362207819,1748103034710,-405.08463105,0.00019178,2]
[362207820,1748103034719,-400.0,0.00019178,2]
[362207821,1748103034729,-400.0,0.00019178,2]
[362207822,1748103034738,-404.10910781,0.00019178,2]
[362207823,1748103034747,-400.0,0.00019178,2]
[362207824,1748103034756,-300.0,0.00019178,2]
[362207825,1748103034765,-400.0,0.00019178,2]
[362207826,1748103034775,-430.0,0.00019178,2]
[362207827,1748103034784,-400.0,0.00019178,2]
[362207828,1748103034794,-400.0,0.00019178,2]
[362207829,1748103034803,-400.0,0.00019178,2]
[362207830,1748103034813,-400.0,0.00019178,2]
[362207831,1748103034823,-430.0,0.00019178,2]
[362207832,1748103034832,-430.0,0.00019178,2]
[362207833,1748103034842,-430.0,0.00019178,2]
[362207834,1748103034851,-430.0,0.00019178,2]
[362207835,1748103034861,-430.0,0.00019178,2]
[362207836,1748103034871,-400.0,0.00019178,2]
[362207837,1748103034881,-400.0,0.00019178,2]
[362207838,1748103034891,-277.06,0.00019178,2]
[362207839,1748103034901,-430.0,0.00019178,2]
[362207840,1748103034910,-430.0,0.00019178,2]
[362207841,1748103034920,-430.0,0.00019178,2]
[362207842,1748103034930,-430.0,0.00019178,2]
[362207843,1748103034940,-689.57,0.00019178,2]
[362207844,1748103034949,-430.0,0.00019178,2]
[362207845,1748103034958,-430.0,0.00019178,2]
[362207846,1748103034968,-163.99,0.00019178,2]
[362207847,1748103034977,-430.0,0.00019178,2]
[362207848,1748103034987,-430.0,0.00019178,2]
[362207849,1748103034996,-430.0,0.00019178,2]
[362207850,1748103035005,-654.77,0.00019178,2]
[362207851,1748103035014,-228.0,0.00019178,2]
[362207852,1748103035023,-430.0,0.00019178,2]
[362207853,1748103035033,-400.0,0.00019178,2]
[362207854,1748103035042,-450.0,0.00019178,2]
[362207855,1748103035051,-922.77,0.00019178,2]
[362207856,1748103035061,-430.0,0.00019178,2]
[362207857,1748103035070,-430.0,0.00019178,2]
[362207858,1748103035079,-430.0,0.00019178,2]
[362207859,1748103035088,-430.0,0.00019178,2]
[362207860,1748103035098,-459.81,0.00019178,2]
[362207861,1748103035107,-400.0,0.00019178,2]
[362207862,1748103035116,-544.16,0.00019178,2]
[362207863,1748103035126,-477.73,0.00019178,2]
[362207864,1748103035139,-430.0,0.00019178,2]
[362207865,1748103035148,-430.0,0.00019178,2]
[362207866,1748103035157,-430.0,0.00019178,2]
[362207867,1748103035166,-430.0,0.00019178,2]
[362207868,1748103035176,-430.0,0.00019178,2]
[362207869,1748103035185,-400.0,0.00019178,2]
[362207870,1748103035194,-430.0,0.00019178,2]
[362207871,1748103035203,-504.42560679,0.00019178,2]
[362207872,1748103035213,-430.0,0.00019178,2]
[362207873,1748103035223,-430.0,0.00019178,2]
[362207874,1748103035232,-463.46,0.00019178,2]
[362207875,1748103035242,-198.78,0.00019178,2]
[362207876,1748103035251,-430.0,0.00019178,2]
[362207877,1748103035260,-430.0,0.00019178,2]
[362207878,1748103035269,-430.0,0.00019178,2]
[362207879,1748103035280,-430.0,0.00019178,2]
[362207880,1748103035289,-270.44,0.00019178,2]
[362207881,1748103035299,-478.49,0.00019178,2]
[362207882,1748103035308,-440.75,0.00019178,2]
[362207883,1748103035317,-229.8,0.00019178,2]
[362207884,1748103035327,-430.0,0.00019178,2]
[362207885,1748103035336,-430.98,0.00019178,2]
[362207886,1748103035345,-430.0,0.00019178,2]
[362207887,1748103035355,-560.0,0.00019178,2]
[362207888,1748103035364,-3416.7,0.00019178,2]
[362207889,1748103035373,-430.0,0.00019178,2]
[362207890,1748103035384,-430.0,0.00019178,2]
[362207891,1748103035393,-483.98,0.00019178,2]
[362207892,1748103035404,-490.0,0.00019178,2]
[362207893,1748103035414,-430.0,0.00019178,2]
[362207894,1748103035424,-430.0,0.00019178,2]
[362207895,1748103035433,-400.0,0.00019178,2]
[362207896,1748103035442,-430.0,0.00019178,2]
[362207897,1748103035451,-555.25,0.00019178,2]
[362207898,1748103035460,-430.0,0.00019178,2]
[362207899,1748103035471,-430.0,0.00019178,2]
[362207900,1748103035480,-400.0,0.00019178,2]
[362207901,1748103035489,-430.0,0.00019178,2]
[362207902,1748103035499,-430.0,0.00019178,2]
[362207903,1748103035509,-430.0,0.00019178,2]
[362207904,1748103035519,-300.0,0.00019178,2]
[362207905,1748103035529,-430.0,0.00019178,2]
[362207906,1748103035540,-516.17,0.00019178,2]
[362207907,1748103035549,-430.0,0.00019178,2]
[362207908,1748103035559,-430.0,0.00019178,2]
[362207909,1748103035570,-430.0,0.00019178,2]
[362207910,1748103035581,-430.0,0.00019178,2]
[362207911,1748103035590,-587.69,0.00019178,2]
[362207912,1748103035602,-430.0,0.00019178,2]
[362207913,1748103035612,-747.04,0.00019178,2]
[362207914,1748103035622,-430.0,0.00019178,2]
[362207915,1748103035631,-430.0,0.00019178,2]
[362207916,1748103035641,-430.0,0.00019178,2]
[362207917,1748103035651,-430.0,0.00019178,2]
[362207918,1748103035660,-430.0,0.00019178,2]
[362207919,1748103035669,-430.0,0.00019178,2]
[362207920,1748103035679,-450.56,0.00019178,2]
[362207921,1748103035688,-430.0,0.00019178,2]
[362207922,1748103035698,-430.0,0.00019178,2]
[362207923,1748103035707,-401.39192368,0.00019178,2]
[362207924,1748103035718,-430.0,0.00019178,2]
[362207925,1748103035728,-430.0,0.00019178,2]
[362207926,1748103035739,-464.69,0.00019178,2]
[362207927,1748103035748,-430.0,0.00019178,2]
[362207928,1748103035757,-431.85,0.00019178,2]
[362207929,1748103035767,-430.0,0.00019178,2]
[362207930,1748103035776,-400.0,0.00019178,2]
[362207931,1748103035786,-430.0,0.00019178,2]
[362207932,1748103035892,-3110.04,0.00019178,2]
[362207933,1748103035901,-430.0,0.00019178,2]
[362207934,1748103035910,-402.35541729,0.00019178,2]
[362207935,1748103035919,-430.0,0.00019178,2]
[362207936,1748103035929,-401.28383449,0.00019178,2]
[362207937,1748103035938,-890.63,0.00019178,2]
[362207938,1748103035947,-430.0,0.00019178,2]
[362207939,1748103035956,-430.0,0.00019178,2]
[362207940,1748103035966,-400.0,0.00019178,2]
[362207941,1748103035975,-430.0,0.00019178,2]
[362207942,1748103035985,-430.0,0.00019178,2]
[362207943,1748103035994,-402.77198962,0.00019178,2]
[362207944,1748103036003,-996.99,0.00019178,2]
[362207945,1748103036012,-430.0,0.00019178,2]
[362207946,1748103036021,-992.55,0.00019178,2]
[362207947,1748103036030,-430.0,0.00019178,2]
[362207948,1748103036039,-400.0,0.00019178,2]
[362207949,1748103036048,-430.0,0.00019178,2]
[362207950,1748103036057,-401.57520692,0.00019178,2]
[362207951,1748103036066,-430.0,0.00019178,2]
[362207952,1748103036075,-430.0,0.00019178,2]
[362207953,1748103036085,-430.0,0.00019178,2]
[362207954,1748103036094,-430.0,0.00019178,2]
[362207955,1748103036103,-430.0,0.00019178,2]
[362207956,1748103036113,-400.0,0.00019178,2]
[362207957,1748103036122,-430.0,0.00019178,2]
[362207958,1748103036134,-470.72224834,0.00019178,2]
[362207959,1748103036144,-430.0,0.00019178,2]
[362207960,1748103036154,-525.13,0.00019178,2]
[362207961,1748103036163,-1037.53,0.00019178,2]
[362207962,1748103036173,-430.0,0.00019178,2]
[362207963,1748103036182,-1114.5,0.00019178,2]
[362207964,1748103036191,-430.0,0.00019178,2]
[362207965,1748103036201,-155.65,0.00019178,2]
[362207966,1748103036211,-450.0,0.00019178,2]
[362207967,1748103036220,-611.52,0.00019178,2]
[362207968,1748103036229,-1237.73,0.00019178,2]
[362207969,1748103036238,-1575.17,0.00019178,2]
[362207970,1748103036247,-1318.65291373,0.00019188,2]
[362207971,1748103036258,-226.965,0.00019204,2]
[362207972,1748103036270,-500.0,0.00019205,2]
[362207973,1748103036281,-244.91,0.00019205,2]
[362207974,1748103036290,-430.0,0.00019205,2]
[362207975,1748103036299,-550.9,0.00019205,2]
[362207976,1748103036308,-342.60835027,0.00019205,2]
[362207977,1748103036317,-364.10673465,0.00019205,2]
[362207978,1748103036326,-535.1,0.00019205,2]
[362207979,1748103036335,-430.0,0.00019205,2]
[362207980,1748103036344,-430.0,0.00019205,2]
[362207981,1748103036354,-474.53,0.00019205,2]
[362207982,1748103036363,-417.37,0.00019205,2]
[362207983,1748103036373,-310.0,0.00019205,2]
[362207984,1748103036382,-430.0,0.00019205,2]
[362207985,1748103036391,-400.0,0.00019205,2]
[362207986,1748103036401,-430.0,0.00019205,2]
[362207987,1748103036410,-507.79196465,0.00019205,2]
[362207988,1748103036419,-430.0,0.00019205,2]
[362207989,1748103036430,-450.0,0.00019205,2]
[362207990,1748103036440,-430.0,0.00019205,2]
[362207991,1748103036449,-430.0,0.00019205,2]
[362207992,1748103036458,-430.0,0.00019205,2]
[362207993,1748103036467,-430.0,0.00019205,2]
[362207994,1748103036477,-430.0,0.00019205,2]
[362207995,1748103036487,-430.0,0.00019205,2]
[362207996,1748103036497,-430.0,0.00019205,2]
[362207997,1748103036507,-550.94,0.00019205,2]
[362207998,1748103036517,-430.0,0.00019205,2]
[362207999,1748103036528,-430.0,0.00019205,2]
[362208000,1748103036538,-430.0,0.00019205,2]
[362208001,1748103036548,-165.76,0.00019205,2]
[362208002,1748103036558,-271.82,0.00019205,2]
[362208003,1748103036568,-303.6,0.00019205,2]
[362208004,1748103036577,-312.09,0.00019205,2]
[362208005,1748103036589,-430.0,0.00019205,2]
[362208006,1748103036599,-430.0,0.00019205,2]
[362208007,1748103036608,-430.0,0.00019205,2]
[362208008,1748103036618,-430.0,0.00019205,2]
[362208009,1748103036630,-1052.17,0.00019205,2]
[362208010,1748103036639,-397.3,0.00019205,2]
[362208011,1748103036650,-430.0,0.00019205,2]
[362208012,1748103036661,-388.16,0.00019205,2]
[362208013,1748103036671,-150.7,0.00019205,2]
[362208014,1748103036682,-349.72,0.00019205,2]
[362208015,1748103036691,-430.0,0.00019205,2]
[362208016,1748103036701,-430.0,0.00019205,2]
[362208017,1748103036711,-450.0,0.00019205,2]
[362208018,1748103036721,-430.0,0.00019205,2]
[362208019,1748103036732,-430.0,0.00019205,2]
[362208020,1748103036743,-372.8235468,0.00019205,2]
[362208021,1748103036752,-338.00486075,0.00019205,2]
[362208022,1748103036762,-191.65,0.00019205,2]
[362208023,1748103036771,-430.0,0.00019205,2]
[362208024,1748103036781,-689.57,0.00019205,2]
[362208025,1748103036790,-430.0,0.00019205,2]
[362208026,1748103036802,-430.0,0.00019205,2]
[362208027,1748103036811,-430.0,0.00019205,2]
[362208028,1748103036821,-430.0,0.00019205,2]
[362208029,1748103036831,-654.77,0.00019205,2]
[362208030,1748103036842,-430.0,0.00019205,2]
[362208031,1748103036851,-922.77,0.00019205,2]
[362208032,1748103036861,-430.0,0.00019205,2]
[362208033,1748103036871,-430.0,0.00019205,2]
[362208034,1748103036881,-430.0,0.00019205,2]
[362208035,1748103036891,-430.0,0.00019205,2]
[362208036,1748103036901,-459.81,0.00019205,2]
[362208037,1748103036911,-477.73,0.00019205,2]
[362208038,1748103036922,-430.0,0.00019205,2]
[362208039,1748103036932,-430.0,0.00019205,2]
[362208040,1748103036942,-430.0,0.00019205,2]
[362208041,1748103036952,-433.15537028,0.00019205,2]
[362208042,1748103036964,-358.45962418,0.00019205,2]
[362208043,1748103036973,-430.0,0.00019205,2]
[362208044,1748103036982,-430.0,0.00019205,2]
[362208045,1748103036991,-430.0,0.00019205,2]
[362208046,1748103037001,-430.0,0.00019205,2]
[362208047,1748103037010,-430.0,0.00019205,2]
[362208048,1748103037020,-430.0,0.00019205,2]
[362208049,1748103037031,-430.0,0.00019205,2]
[362208050,1748103037041,-478.49,0.00019205,2]
[362208051,1748103037050,-440.75,0.00019205,2]
[362208052,1748103037059,-430.0,0.00019205,2]
[362208053,1748103037068,-430.98,0.00019205,2]
[362208054,1748103037078,-430.0,0.00019205,2]
[362208055,1748103037087,-3416.7,0.00019205,2]
[362208056,1748103037098,-430.0,0.00019205,2]
[362208057,1748103037108,-430.0,0.00019205,2]
[362208058,1748103037118,-483.98,0.00019205,2]
[362208059,1748103037127,-232.2,0.00019205,2]
[362208060,1748103037140,-430.0,0.00019205,2]
[362208061,1748103037149,-430.0,0.00019205,2]
[362208062,1748103037158,-430.0,0.00019205,2]
[362208063,1748103037167,-430.0,0.00019205,2]
[362208064,1748103037177,-430.0,0.00019205,2]
[362208065,1748103037186,-430.0,0.00019205,2]
[362208066,1748103037195,-430.0,0.00019205,2]
[362208067,1748103037205,-430.0,0.00019205,2]
[362208068,1748103037215,-587.69,0.00019205,2]
[362208069,1748103037224,-430.0,0.00019205,2]
[362208070,1748103037234,-747.04,0.00019205,2]
[362208071,1748103037243,-430.0,0.00019205,2]
[362208072,1748103037252,-430.0,0.00019205,2]
[362208073,1748103037261,-430.0,0.00019205,2]
[362208074,1748103037271,-430.0,0.00019205,2]
[362208075,1748103037281,-430.0,0.00019205,2]
[362208076,1748103037291,-430.0,0.00019205,2]
[362208077,1748103037300,-360.28291869,0.00019205,2]
[362208078,1748103037309,-464.69,0.00019205,2]
[362208079,1748103037319,-430.0,0.00019205,2]
[362208080,1748103037329,-431.85,0.00019205,2]
[362208081,1748103037338,-430.0,0.00019205,2]
[362208082,1748103037347,-370.0,0.00019205,2]
[362208083,1748103037356,-3110.04,0.00019205,2]
[362208084,1748103037365,-396.02,0.00019205,2]
[362208085,1748103037374,-890.63,0.00019205,2]
[362208086,1748103037383,-178.41876216,0.00019205,2]
[362208087,1748103037392,-430.0,0.00019205,2]
[362208088,1748103037402,-335.54,0.00019205,2]
[362208089,1748103037411,-157.04,0.00019205,2]
[362208090,1748103037420,-996.99,0.00019205,2]
[362208091,1748103037430,-430.0,0.00019205,2]
[362208092,1748103037439,-992.55,0.00019205,2]
[362208093,1748103037448,-400.0,0.00019205,2]
[362208094,1748103037457,-430.0,0.00019205,2]
[362208095,1748103037466,-430.0,0.00019205,2]
[362208096,1748103037475,-430.0,0.00019205,2]
[362208097,1748103037484,-430.0,0.00019205,2]
[362208098,1748103037493,-430.0,0.00019205,2]
[362208099,1748103037503,-430.0,0.00019205,2]